[Event "13th Palmanova Festival A 2024"]
[Site "Palmanova"]
[Date "2025.01.03"]
[Round "9.12"]
[White "Skrbec, Leon"]
[Black "Maglioni, Leonardo"]
[Result "1-0"]
[ECO "A48"]
[WhiteElo "2265"]
[BlackElo "1971"]
[Annotator "TA"]
[PlyCount "103"]
[EventDate "2024.12.27"]
[EventCountry "ITA"]
[SourceTitle "playchess.com"]
[Source "ChessBase"]
[SourceQuality "1"]
[TimeControl "6000+30"]

{[%evp 14,103,16,41,43,39,37,37,67,45,35,14,49,41,47,51,87,73,96,85,87,89,104,118,166,107,94,105,110,105,90,62,68,77,224,228,223,215,240,229,212,154,152,133,145,139,150,125,112,97,146,148,126,130,134,92,86,58,161,147,156,157,141,77,227,195,231,233,225,247,276,283,395,381,433,385,391,380,500,490,506,454,554,552,720,697,1073,1091,1067,1063,900,866]} 1. d4 {[%emt 0:01:02]} Nf6 {[%emt 0:01:13]} 2. Nf3 {[%emt 0:00:19]} g6 {[%emt 0:00:12]} 3. Bg5 {[%emt 0:02:24]} Ne4 {[%emt 0:00:38]} 4. Bf4 {[%emt 0:02:01]} Bg7 {[%emt 0:07:50]} 5. Nbd2 {[%emt 0:01:05]} d5 {[%emt 0:08:51]} 6. c3 {[%emt 0:01:05]} c5 {[%emt 0:01:43]} 7. e3 {[%emt 0:00:45]} Nxd2 {[%emt 0:05:23]} 8. Qxd2 {[%emt 0:00:14]} cxd4 {[%emt 0:14:27]} 9. exd4 {[%emt 0:00:07]} O-O {[%emt 0:00:36]} 10. Bh6 {[%emt 0:11:50]} Qb6 {[%emt 0:12:50]} 11. Bxg7 {[%emt 0:00:13]} (11. O-O-O Bf5 12. Rg1 Qa5 13. Bxg7 Kxg7 14. Nh4) 11... Kxg7 {[%emt 0:00:03]} 12. Be2 {[%emt 0:01:04][%cal Bf1e2,Be2d3,Bd3c2][%mdl 32]} (12. Bd3 {keeps more tension.} Qf6 13. h4 h5 14. Qg5) 12... Nd7 {[%emt 0:03:34]} 13. O-O {[%emt 0:00:44]} Nf6 {[%emt 0:00:37]} 14. Bd3 {[%emt 0:00:08]} Bd7 {[%emt 0:02:54]} 15. Rfe1 {[%emt 0:00:23]} Rfe8 {[%emt 0:00:13]} 16. Ne5 {[%emt 0:01:53]} Bb5 {[%emt 0:00:07]} 17. Bc2 {[%emt 0:00:39]} a5 {[%emt 0:00:20]} 18. a4 {[%emt 0:04:11]} Ba6 {[%emt 0:00:58]} (18... Bc6 $16 19. Bd3 e6) 19. h4 {[%emt 0:01:55]} (19. Re3 $18) 19... Qxb2 $16 {[%emt 0:06:20] White must now prevent ...Rac8.} 20. Rab1 {[%emt 0:05:19]} (20. Nxf7 Ne4 21. Qh6+ (21. Bxe4 $2 Qxd2 22. Bxd5 e6 $19) 21... Kxf7 $14) 20... Qa3 {[%emt 0:03:14]} 21. Re3 {[%emt 0:00:17][%cal Oc3c4]} Qd6 {[%emt 0:02:03]} 22. Rf3 {[%emt 0:04:53][%cal Oh4h5]} Rf8 {[%emt 0:03:41]} 23. h5 {[%emt 0:00:59][%cal Bh4h5,Bh5h6][%mdl 32]} Ne4 {[%emt 0:09:46]} (23... Nxh5 $16 24. g4 Nf6) 24. Bxe4 $1 $18 {[%emt 0:01:52]} dxe4 {[%emt 0:00:21]} 25. Rh3 $1 {[%emt 0:00:05]} (25. Nxf7 Rxf7 26. Rxf7+ Kxf7 $19) 25... Rh8 {[%emt 0:07:40]} 26. h6+ {[%emt 0:01:05][%mdl 1024] White has strong compensation.} Kg8 {[%emt 0:01:48]} 27. Re3 {[%emt 0:05:27]} f6 {[%emt 0:01:46]} 28. Qa2+ {[%emt 0:00:29]} e6 {[%emt 0:00:14] [#]} 29. Ng4 $1 {[%emt 0:02:22] White is much more active.} Kf7 {[%emt 0:00:57]} 30. Rxe4 {[%emt 0:00:59]} Rac8 {[%emt 0:01:09]} 31. Qd2 {[%emt 0:01:03][%cal Od4d5]} Rhd8 {[%emt 0:01:25]} ({Black should try} 31... Rhe8) 32. Rf4 $16 {[%emt 0:08:18][%cal Be4f4,Bf4f3,Bf3e3,Be3e5][%mdl 32]} f5 {[%emt 0:00:30][%cal Oe6e5]} 33. Qe3 {[%emt 0:00:17][%cal Od4d5]} Kg8 {[%emt 0:04:22]} 34. Ne5 {[%emt 0:01:06]} Rc7 {[%emt 0:00:59]} 35. Qg3 {[%emt 0:01:59]} Kh8 {[%emt 0:02:48]} (35... b6 $14) 36. Rf3 $18 {[%emt 0:02:48][%cal Oc3c4] Black must now prevent c4!.} Kg8 {[%emt 0:02:28] [#]} 37. Re3 $1 $36 {[%emt 0:01:30][%mdl 2048] Keeping Black busy.} Rdc8 {[%emt 0:02:14]} 38. Rbe1 {[%emt 0:09:00]} ({White should play} 38. Qf4) 38... Re8 {[%emt 0:01:12]} (38... b6 $16 {was necessary.} 39. Qg5 Rf8 40. Nxg6 hxg6 41. Rxe6 Qd8 42. Qxg6+ (42. Rxg6+ Kh8 $16) 42... Kh8) 39. Qf4 {[%emt 0:00:17][%cal Od4d5] Black is weak on the dark squares} Bc4 {[%emt 0:00:45] [#]} 40. Nxg6 $1 {[%emt 0:00:34][%mdl 512]} Qxf4 {[%emt 0:00:04]} 41. Nxf4 {[%emt 0:00:06]} Rce7 {[%emt 0:00:00]} 42. Re5 {[%emt 0:00:00]} b5 {[%emt 0:00:00]} 43. Rc5 {[%emt 0:00:00]} Bb3 {[%emt 0:00:00]} 44. Rxb5 {[%emt 0:00:00]} Bxa4 {[%emt 0:00:00]} 45. Rxa5 {[%emt 0:00:00]} Bc6 {[%emt 0:00:00]} 46. Rae5 {[%emt 0:00:00]} Kf7 {[%emt 0:00:00]} 47. c4 {[%emt 0:00:00]} Bd7 {[%emt 0:00:00]} 48. Nh5 {[%emt 0:00:00]} Rc8 {[%emt 0:00:00]} 49. Ng7 {[%emt 0:00:00] Repels Ree8} Ba4 {[%emt 0:00:00] [#]} 50. Nxf5 $1 {[%emt 0:00:00]} Rd7 {[%emt 0:00:00] Prevents Nd6+} 51. Rxe6 {[%emt 0:00:00]} Rxc4 {[%emt 0:00:00]} 52. Nd6+ {[%emt 0:00:00]} 1-0

[Event "13th Palmanova Festival A 2024"]
[Site "Palmanova"]
[Date "2025.01.03"]
[Round "9.13"]
[White "Candian, Lorenzo"]
[Black "Perossa, Nicolas"]
[Result "1/2-1/2"]
[ECO "C48"]
[WhiteElo "2208"]
[BlackElo "2259"]
[Annotator "TA"]
[PlyCount "101"]
[EventDate "2024.12.27"]
[EventCountry "ITA"]
[SourceTitle "playchess.com"]
[Source "ChessBase"]
[SourceQuality "1"]
[TimeControl "6000+30"]

{[%evp 16,101,28,31,36,6,10,8,14,-50,19,-90,-108,-97,-105,-100,-114,-120,-129,-128,-124,-114,-114,-119,-112,-110,-112,-93,-96,-121,-81,-90,-112,-110,-62,-77,-75,-73,-59,-151,-153,-163,-89,-333,-333,-339,-320,-318,-198,-347,-346,-321,-289,-548,-547,-519,-389,-670,-662,-681,-654,-760,-176,-176,-148,-158,-152,-218,-220,-215,-127,-114,-87,-171,-168,-145,-138,-145,-145,-145,0,0,0,0,0,0,29965,29966]} 1. e4 {[%emt 0:02:10]} e5 {[%emt 0:00:35]} 2. Nf3 {[%emt 0:00:18]} Nc6 {[%emt 0:00:05]} 3. Nc3 {[%emt 0:00:31]} Nf6 {[%emt 0:00:07]} 4. Bb5 {[%emt 0:00:06]} Bd6 {[%emt 0:00:06]} 5. d3 {[%emt 0:00:25]} O-O {[%emt 0:00:42]} 6. Bg5 {[%emt 0:01:07]} Nd4 {[%emt 0:00:32]} 7. Nxd4 {[%emt 0:04:17]} exd4 {[%emt 0:00:10]} 8. Nd5 {[%emt 0:00:08]} Be7 {[%emt 0:04:16]} 9. Nxe7+ {[%emt 0:03:41]} Qxe7 {[%emt 0:00:01]} 10. Qd2 {[%emt 0:04:43]} d5 {[%emt 0:20:14]} 11. O-O {[%emt 0:07:17]} a6 {[%emt 0:07:08] [#]} 12. Rae1 {[%emt 0:12:42]} ({Better is} 12. Rfe1 $1 $11 dxe4 (12... axb5 13. e5 $16) 13. Bc4) 12... dxe4 {[%emt 0:18:29]} (12... axb5 $15 13. e5 Ne4 14. dxe4 (14. Bxe7 $2 Nxd2 15. Bxf8 Kxf8 $19) (14. Rxe4 Qe6 $11) 14... Qc5) 13. dxe4 {[%emt 0:01:11]} (13. Bc4 $11 {remains equal.}) 13... axb5 $17 {[%emt 0:09:09]} 14. e5 {[%emt 0:00:06]} Ne4 $1 {[%emt 0:00:35]} 15. Rxe4 {[%emt 0:00:14]} f6 {[%emt 0:04:32]} 16. Bh4 {[%emt 0:16:11]} g5 $1 {[%emt 0:01:57]} 17. Bg3 {[%emt 0:01:37]} f5 $1 {[%emt 0:00:39]} (17... c5 18. f4 f5 (18... Rxa2 19. f5 $14) 19. Ree1 $15) 18. Rxd4 {[%emt 0:00:32]} f4 $1 {[%emt 0:01:50]} (18... Rxa2 19. f3 $11) 19. Bxf4 {[%emt 0:01:01]} gxf4 {[%emt 0:01:24]} 20. Rxf4 {[%emt 0:00:09]} Rxf4 {[%emt 0:02:46]} (20... Rxa2 $2 21. Qd5+ Be6 22. Rxf8+ Kxf8 23. Qxb5 $17) (20... Qxe5 $6 21. Rxf8+ Kxf8 22. Re1 $11) 21. Qxf4 {[%emt 0:00:02]} Rxa2 {[%emt 0:15:40]} 22. Qg3+ {[%emt 0:01:15]} Kh8 {[%emt 0:00:13]} 23. Qb3 {[%emt 0:01:01]} Ra5 {[%emt 0:04:43]} 24. f4 {[%emt 0:03:57]} Bf5 {[%emt 0:03:01]} (24... Qc5+ $17 25. Kh1 Qc4) 25. h3 $15 {[%emt 0:08:00]} Qc5+ {[%emt 0:07:57]} 26. Kh2 {[%emt 0:00:01]} Ra8 {[%emt 0:01:02]} (26... Qxc2 27. Qf7 Ra8 28. Rf3 $16) 27. Qf3 {[%emt 0:02:47]} (27. Qg3 $15) 27... Qxc2 $17 {[%emt 0:02:57]} (27... Bxc2 28. Rc1 $17) 28. Rf2 {[%emt 0:00:24]} Qc4 {[%emt 0:02:47]} (28... Qe4 $19 29. g4 Qxf3 30. Rxf3 Be4) 29. b3 $2 {[%emt 0:00:51]} (29. Rd2 $17) 29... Qd4 $19 {[%emt 0:00:30]} 30. Re2 {[%emt 0:01:02]} c6 {[%emt 0:00:50]} 31. e6 {[%emt 0:00:22]} Re8 {[%emt 0:00:17]} 32. e7 {[%emt 0:00:01]} (32. Qh5 {was the only defense.} Bg6 (32... Qxf4+ 33. g3 $17) (32... Rxe6 $2 33. Qxf5 Rg6 34. Re8+ Rg8 35. Re7 $18) 33. Qg5) 32... Qf6 $19 {[%emt 0:00:37]} 33. g4 {[%emt 0:00:19]} Be6 {[%emt 0:00:26]} 34. f5 $2 {[%emt 0:04:49]} (34. Re5) 34... Bd5 $19 {[%emt 0:00:13]} (34... Rxe7 35. Qe4 $16 (35. Rxe6 $2 Rxe6 36. Kg3 Qe5+ 37. Qf4 Qe3+ 38. Qxe3 Rxe3+ $19)) 35. Qe3 {[%emt 0:00:01]} b4 {[%emt 0:00:39]} 36. g5 $2 {[%emt 0:11:32]} (36. Qc5) 36... Qxf5 $19 {[%emt 0:00:30]} 37. Qd4+ {[%emt 0:00:49]} Kg8 {[%emt 0:00:15]} 38. Rf2 {[%emt 0:00:01]} Bf3 $2 {[%emt 0:01:02]} (38... Qxg5 39. Rf8+ Rxf8 40. Qh8+ Kxh8 41. exf8=Q+ Qg8 (41... Bg8 $2 42. Qxb4 Qe5+ 43. Kg2 $19) 42. Qf6+ Qg7 43. Qd8+ Bg8) 39. Qe3 {[%emt 0:02:23]} Qe4 {[%emt 0:00:32]} 40. Rxf3 {[%emt 0:22:27]} Qxe7 {[%emt 0:00:31]} (40... Rxe7 41. Qxe4 Rxe4 42. Kg3 $11) 41. Qf2 {[%emt 0:00:00]} (41. Qd3 $17) 41... Qd6+ $19 {[%emt 0:00:00]} (41... Qxg5 $2 42. Rg3 $18) 42. Kg2 {[%emt 0:00:00]} Re5 {[%emt 0:00:00]} (42... b5 $19 43. Rf5 Qe6) 43. h4 $17 {[%emt 0:00:00]} Qe6 {[%emt 0:00:00]} 44. Rf6 {[%emt 0:00:00]} (44. Qd4 $17) 44... Qg4+ $19 {[%emt 0:00:00]} (44... Qxb3 45. Rf8+ Kg7 46. Qf6#) 45. Kh2 {[%emt 0:00:00] [#]} Re8 $1 {[%emt 0:00:00]} (45... Re2 $6 46. Rf8+ Kg7 47. Rf7+ Kg6 (47... Kg8 48. Rf8+ Kg7 49. Rf7+ Kh8 50. Rf8+ Kg7 $11) 48. Rf6+ Kg7 49. Rf7+ Kg6 50. Rf6+ Kg7 51. Rf7+ $11) 46. Rf4 {[%emt 0:00:00] [#]} Qd1 $1 {[%emt 0:00:00]} 47. Rf3 {[%emt 0:00:00]} Re2 {[%emt 0:00:00]} ({Black should try} 47... b5 $17 {[%cal Oc6c5] and ...c5! would now be decisive} 48. Re3 Rf8) 48. Rf8+ $11 {[%emt 0:00:00]} Kg7 {[%emt 0:00:00]} 49. Rf7+ $1 {[%emt 0:00:00]} Kg6 {[%emt 0:00:00]} (49... Kh8 $5 50. Rf8+ $8 Kg7 51. Rf7+ Kg6 52. Rf6+ Kg7 53. Rf7+ $11) 50. Rf6+ {[%emt 0:05:00]} Kh5 $2 {[%emt 0:00:00][%mdl 8192]} (50... Kg7 $11 51. Rf7+ Kg6 (51... Kg8 52. Rf8+ Kg7 53. Rf7+ $11) 52. Rf6+ Kg7) 51. Kg3 $1 1/2-1/2

[Event "13th Palmanova Festival A 2024"]
[Site "Palmanova"]
[Date "2025.01.03"]
[Round "9.14"]
[White "Zoncu, Roberto Alessio"]
[Black "Lekic, Dusan"]
[Result "1/2-1/2"]
[ECO "B22"]
[WhiteElo "2165"]
[BlackElo "2287"]
[Annotator "TA"]
[PlyCount "66"]
[EventDate "2024.12.27"]
[EventCountry "ITA"]
[SourceTitle "playchess.com"]
[Source "ChessBase"]
[SourceQuality "1"]
[TimeControl "6000+30"]

{[%evp 26,66,-6,-26,-18,-18,-42,-38,-31,-33,-29,-86,-52,-51,-46,-41,-33,-68,-67,-72,-45,-47,-51,-51,-43,-44,-40,-65,-55,-49,-31,-31,-31,-31,-31,-31,-31,-31,-31,-37,0,-10,0]} 1. e4 {[%emt 0:00:06][%cal Be2e4,Be4e5][%mdl 32]} c5 {[%emt 0:01:17]} 2. d4 {[%emt 0:06:14]} cxd4 {[%emt 0:00:08]} 3. c3 {[%emt 0:00:04]} Nf6 {[%emt 0:00:09]} 4. e5 {[%emt 0:00:05]} Nd5 {[%emt 0:00:06]} 5. Nf3 {[%emt 0:00:21]} Nc6 {[%emt 0:00:07]} 6. Bc4 {[%emt 0:00:08]} Nb6 {[%emt 0:00:15]} 7. Bb3 {[%emt 0:00:04]} d5 {[%emt 0:00:11]} 8. exd6 {[%emt 0:00:07]} Qxd6 {[%emt 0:00:10]} 9. O-O {[%emt 0:00:07]} Be6 {[%emt 0:01:17]} 10. Na3 {[%emt 0:00:25]} dxc3 {[%emt 0:02:59]} 11. Bxe6 {[%emt 0:11:54]} Qxd1 {[%emt 0:13:46]} 12. Rxd1 {[%emt 0:01:20]} fxe6 {[%emt 0:01:58]} 13. Nb5 {[%emt 0:04:29]} Rc8 {[%emt 0:03:55]} 14. bxc3 {[%emt 0:15:15]} Nc4 {[%emt 0:01:25]} 15. Rb1 {[%emt 0:05:12]} e5 {[%emt 0:02:37]} 16. Na3 {[%emt 0:07:08]} Nxa3 {[%emt 0:01:36]} 17. Bxa3 {[%emt 0:00:12]} b6 {[%emt 0:00:19]} 18. Rb5 {[%emt 0:12:14]} (18. c4 $11) 18... e6 {[%emt 0:03:13]} 19. Bxf8 {[%emt 0:03:04]} Rxf8 {[%emt 0:00:11]} 20. Nxe5 {[%emt 0:24:21]} Rf5 {[%emt 0:01:17]} 21. Nxc6 {[%emt 0:04:27]} Rxc6 $15 {[%emt 0:00:12][%mdl 4096] Endgame KRR-KRR} (21... Rxb5 22. Nxa7 Rbc5 (22... Rd8 $2 23. Rxd8+ Kxd8 24. Nxb5 $18) 23. Nxc8 Rxc8 24. g3) 22. Rb3 {[%emt 0:00:39]} Rd5 {[%emt 0:01:56]} 23. Rxd5 {[%emt 0:04:04]} exd5 {[%emt 0:00:06] KR-KR} 24. g3 {[%emt 0:01:30]} Ke7 {[%emt 0:02:12]} 25. Kf1 {[%emt 0:00:49]} Kd6 {[%emt 0:01:23]} 26. Ke1 {[%emt 0:01:50]} g5 {[%emt 0:02:17]} 27. Kd2 {[%emt 0:01:37]} Ke5 {[%emt 0:01:15]} 28. Rb4 {[%emt 0:01:42]} Rh6 {[%emt 0:01:16]} 29. h4 $1 {[%emt 0:02:08]} gxh4 {[%emt 0:00:24]} 30. gxh4 {[%emt 0:00:07]} Rf6 {[%emt 0:01:46]} 31. Ke3 {[%emt 0:00:46]} Rc6 {[%emt 0:00:12]} 32. Kd3 {[%emt 0:00:47]} Rf6 {[%emt 0:00:28]} 33. Ke3 {[%emt 0:01:45] Repels Rf3+} Rc6 {[%emt 0:00:09]} 1/2-1/2